bitfinex-derivatives/quotes_SOLF0:USTF0_20250117
["timestamp","ask_amount","ask_price","bid_price","bid_amount"]
[1737085386280,4.7246,211.69,211.64,7.50930928]
[1737085387180,12.23360928,211.71,211.65,4.7254]
[1737085387380,12.23360928,211.71,211.64,7.50930928]
[1737085388083,12.23360928,211.71,211.66,4.7252]
[1737085388278,4.7244,211.7,211.64,7.50930928]
[1737085389175,4.7244,211.7,211.65,4.7255]
[1737085390988,4.7239,211.73,211.68,7.50930928]
[1737085391390,7.50930928,211.74,211.68,7.50930928]
[1737085391785,7.50930928,211.74,211.67,4.7248]
[1737085391989,4.724,211.72,211.68,4.7248]
[1737085392195,4.724,211.72,211.66,8.95030928]
[1737085393085,4.724,211.72,211.67,4.725]
[1737085405202,4.724,211.72,211.68,4.7248]
[1737085405899,4.724,211.72,211.67,4.725]
[1737085415009,7.50930928,211.73,211.66,8.95030928]
[1737085415211,7.50930928,211.69,211.61,7.50930928]
[1737085415412,7.50930928,211.67,211.61,7.50930928]
[1737085416211,12.23450928,211.67,211.62,4.7261]
[1737085419816,4.7256,211.65,211.61,7.50930928]
[1737085425920,4.7256,211.65,211.61,12.23560928]
[1737085428318,105.89518093,211.73,211.63,4.7259]
[1737085428620,7.50930928,211.69,211.63,4.7259]
[1737085429721,7.50930928,211.67,211.61,4.7263]
[1737085429918,7.50930928,211.67,211.6,7.50930928]
[1737085430820,12.23440928,211.67,211.62,4.7261]
[1737085434418,7.50930928,211.67,211.63,4.7259]
[1737085434624,7.50930928,211.69,211.62,7.50930928]
[1737085435822,7.50930928,211.69,211.64,4.7257]
[1737085436828,12.23400928,211.69,211.64,4.7257]
[1737085437316,4.7247,211.69,211.64,4.7257]
[1737085437521,4.7249,211.68,211.64,4.7257]
[1737085437824,4.7249,211.68,211.63,4.7259]
[1737085438521,4.7249,211.68,211.61,7.50930928]
[1737085438714,4.7249,211.68,211.64,4.7257]
[1737085440919,4.7249,211.68,211.63,4.7259]
[1737085442724,7.50930928,211.69,211.63,4.7259]
[1737085442927,4.7251,211.67,211.63,4.7259]
[1737085444227,7.50930928,211.69,211.64,4.7257]
[1737085445129,4.725,211.68,211.64,4.7257]
[1737085445925,4.7251,211.67,211.63,4.7259]
[1737085451829,4.7251,211.67,211.62,4.7261]
[1737085458838,7.50930928,211.69,211.62,4.7261]
[1737085459039,4.7253,211.66,211.62,4.7261]
[1737085472951,4.7253,211.66,211.63,7.50930928]
[1737085473854,4.7244,211.7,211.65,7.50930928]
[1737085474048,113.40449021,211.73,211.65,7.50930928]
[1737085474256,113.40449021,211.73,211.67,7.50930928]
[1737085474557,4.7244,211.71,211.67,7.50930928]
[1737085475055,4.7246,211.69,211.65,7.50930928]
[1737085475456,4.7246,211.69,211.57,4.5199]
[1737085475653,4.7248,211.68,211.64,12.23500928]
[1737085475854,7.50930928,211.69,211.62,7.50930928]
[1737085477056,4.7251,211.67,211.62,12.23540928]
[1737085477252,7.50930928,211.67,211.62,7.50930928]
[1737085478047,4.7253,211.66,211.62,7.50930928]
[1737085479155,4.7261,211.63,211.57,9.2471]
[1737085479356,4.7261,211.63,211.58,7.50930928]
[1737085479854,7.50930928,211.65,211.58,7.50930928]
[1737085480062,7.50930928,211.69,211.62,7.50930928]
[1737085480762,4.7251,211.67,211.62,12.23540928]
[1737085485665,4.7248,211.68,211.63,4.7259]
[1737085488767,4.7248,211.68,211.64,7.50930928]
[1737085488970,4.7246,211.69,211.64,12.23480928]
[1737085489470,4.7246,211.69,211.64,7.50930928]
[1737085491073,4.7246,211.69,211.64,12.23500928]
[1737085493076,4.7244,211.7,211.65,4.7254]
[1737085496177,4.7249,211.68,211.63,4.7258]
[1737085498273,4.725,211.67,211.63,4.7258]
[1737085500281,7.50930928,211.69,211.62,7.50930928]
[1737085500581,4.7253,211.66,211.62,7.50930928]
[1737085502583,4.7241,211.71,211.67,4.725]
[1737085502781,4.7241,211.71,211.67,12.23430928]
[1737085503177,105.89518093,211.73,211.67,7.50930928]
[1737085503384,7.50930928,211.72,211.57,4.5199]
[1737085503584,7.50930928,211.72,211.65,7.50930928]
[1737085504485,105.89518093,211.73,211.67,7.50930928]
[1737085505482,4.7244,211.7,211.67,7.50930928]
[1737085506077,105.89518093,211.73,211.69,7.50930928]
[1737085508187,110.61888093,211.73,211.69,12.23390928]
[1737085513495,110.61888093,211.73,211.71,7.50930928]
[1737085514095,105.89518093,211.73,211.71,7.50930928]
[1737085514292,4.723,211.76,211.71,12.23340928]
[1737085514692,6.8471855,211.77,211.71,12.23340928]
[1737085515288,4.7233,211.75,211.71,7.50930928]
[1737085519001,4.7233,211.75,211.73,7.50930928]
[1737085519798,11.5701855,211.77,211.73,7.50930928]
[1737085519998,6.8471855,211.77,211.73,7.50930928]
[1737085520398,7.50930928,211.81,211.73,7.50930928]
[1737085521103,4.723,211.77,211.73,7.50930928]
[1737085522401,4.723,211.77,211.75,7.50930928]
[1737085522702,4.7226,211.78,211.75,7.50930928]
[1737085527405,7.50930928,211.81,211.64,1.4539]
[1737085527598,4.7233,211.75,211.72,7.50930928]
[1737085528507,4.7231,211.76,211.72,7.50930928]
[1737085529408,4.7224,211.79,211.74,7.50930928]
[1737085530805,4.7226,211.78,211.74,7.50930928]
[1737085532005,4.7228,211.77,211.74,7.50930928]
[1737085532214,7.50930928,211.81,211.72,7.50930928]
[1737085533306,7.50930928,211.81,211.72,12.23310928]
[1737085533810,7.50930928,211.81,211.74,7.50930928]
[1737085534013,4.7226,211.79,211.74,7.50930928]
[1737085535214,4.7226,211.79,211.74,12.23260928]
[1737085537511,4.7226,211.79,211.76,7.50930928]
[1737085538312,4.7226,211.79,211.74,4.7233]
[1737085538509,4.7226,211.79,211.76,7.50930928]
[1737085538716,7.50930928,211.81,211.74,7.50930928]
[1737085539211,4.7229,211.77,211.74,7.50930928]
[1737085549116,4.7229,211.77,211.73,4.7236]
[1737085550616,4.7226,211.78,211.73,4.7236]
[1737085552319,4.7226,211.78,211.74,7.50930928]
[1737085552511,4.7226,211.78,211.74,12.23270928]
[1737085555024,4.7224,211.79,211.74,12.23270928]
[1737085555522,7.50930928,211.83,211.76,12.23230928]
[1737085555717,4.7221,211.81,211.76,12.23230928]
[1737085556822,4.7221,211.8,211.75,4.7232]
[1737085559622,4.7224,211.79,211.75,4.7232]
[1737085560729,4.7221,211.8,211.75,4.7232]
[1737085561525,4.7221,211.8,211.76,4.723]
[1737085562131,7.50930928,211.83,211.74,7.50930928]
[1737085562435,7.50930928,211.83,211.77,4.7227]
[1737085564130,4.722,211.81,211.77,4.7227]
[1737085565827,4.7226,211.78,211.74,12.23270928]
[1737085566130,7.50930928,211.79,211.72,7.50930928]
[1737085566930,4.723,211.77,211.72,12.23310928]
[1737085567129,7.50930928,211.74,211.67,7.50930928]
[1737085567628,4.724,211.72,211.67,12.23410928]
[1737085568327,4.724,211.72,211.67,4.7248]
[1737085568529,7.50930928,211.68,211.6,26.24539477]
[1737085568730,7.50930928,211.61,211.57,78.70409241]
[1737085568923,7.50930928,211.59,211.57,78.70409241]
[1737085569125,7.50930928,211.59,211.52,215.18028093]
[1737085569328,7.50930928,211.53,211.52,215.18028093]
[1737085569528,4.7273,211.57,211.52,215.18028093]
[1737085569728,7.50930928,211.53,211.52,215.18028093]
[1737085569930,7.50930928,211.53,211.52,195.42498269]
[1737085570434,7.50930928,211.53,211.42,23.99286666]
[1737085570435,7.50930928,211.53,211.42,7.50930928]
[1737085570626,7.50930928,211.51,211.42,7.50930928]
[1737085571034,14.19,211.65,211.46,7.50930928]
[1737085571235,7.50930928,211.57,211.5,7.50930928]
[1737085571936,7.50930928,211.57,211.48,7.50930928]
[1737085572333,7.50930928,211.53,211.46,7.50930928]
[1737085572835,7.50930928,211.56,211.48,7.50930928]
[1737085573033,7.50930928,211.54,211.48,7.50930928]
[1737085573837,7.50930928,211.54,211.38,81.97417248]
[1737085574138,7.50930928,211.54,211.47,7.50930928]
[1737085575536,7.50930928,211.54,211.48,4.7292]
[1737085579831,12.23730928,211.54,211.48,4.7292]
[1737085580029,7.50930928,211.52,211.45,12.23910928]
[1737085580430,7.50930928,211.52,211.45,7.50930928]
[1737085581140,7.50930928,211.54,211.47,12.23870928]
[1737085581332,12.23730928,211.54,211.47,7.50930928]
[1737085581740,12.23730928,211.54,211.46,7.50930928]
[1737085583239,12.23730928,211.54,211.47,4.7294]
[1737085583744,4.7286,211.51,211.46,7.50930928]
[1737085585342,4.7286,211.51,211.45,12.23900928]
[1737085586542,7.50930928,211.52,211.47,4.7293]
[1737085586840,7.50930928,211.52,211.38,76.99417248]
[1737085587046,12.23770928,211.52,211.46,4.7297]
[1737085588937,12.23770928,211.52,211.47,4.7295]
[1737085589737,12.23770928,211.52,211.43,7.50930928]
[1737085589941,4.7287,211.51,211.45,4.7297]
[1737085591148,7.50930928,211.5,211.43,4.7302]
[1737085591541,7.50930928,211.48,211.43,4.7302]
[1737085591945,7.50930928,211.46,211.38,76.99417248]
[1737085592147,7.50930928,211.46,211.39,7.50930928]
[1737085592344,7.50930928,211.46,211.37,12.09340928]
[1737085592749,7.50930928,211.46,211.39,7.50930928]
[1737085593346,7.50930928,211.44,211.39,4.7313]
[1737085595250,7.50930928,211.44,211.4,4.731]
[1737085595850,4.94,211.51,211.4,4.731]
[1737085596048,7.50930928,211.45,211.37,3.025]
[1737085596248,7.50930928,211.45,211.37,10.53430928]
[1737085596755,7.50930928,211.45,211.37,3.025]
[1737085596948,7.50930928,211.45,211.39,7.50930928]
[1737085598250,4.94,211.51,211.39,7.50930928]
[1737085598451,7.50930928,211.48,211.41,7.50930928]
[1737085599648,7.50930928,211.5,211.43,7.50930928]
[1737085600249,7.50930928,211.5,211.45,4.7299]
[1737085603548,7.50930928,211.5,211.43,7.50930928]
[1737085605260,7.50930928,211.5,211.46,4.7296]
[1737085607562,12.23810928,211.5,211.46,4.7296]
[1737085615165,4.7288,211.5,211.46,4.7296]
[1737085615566,4.7291,211.49,211.44,4.73]
[1737085616768,12.23810928,211.51,211.46,4.7296]
[1737085622781,4.7293,211.48,211.44,4.7301]
[1737085622979,7.50930928,211.48,211.38,1.5061]
[1737085623278,7.50930928,211.43,211.37,3.025]
[1737085624178,7.50930928,211.41,211.35,7.50930928]
[1737085624376,7.50930928,211.39,211.33,7.50930928]
[1737085626082,7.50930928,211.39,211.34,4.7323]
[1737085626282,7.50930928,211.39,211.33,7.50930928]
[1737085626283,7.50930928,211.37,211.25,34.7606445]
[1737085626582,7.50930928,211.37,211.31,7.50930928]
[1737085626881,7.50930928,211.39,211.31,7.50930928]
[1737085627484,7.50930928,211.41,211.33,7.50930928]
[1737085628186,7.50930928,211.41,211.26,3.1191]
[1737085628187,12.38930928,211.42,211.35,7.50930928]
[1737085628579,7.50930928,211.43,211.35,7.50930928]
[1737085628780,7.50930928,211.43,211.38,4.7315]
[1737085628982,7.50930928,211.45,211.37,7.50930928]
[1737085629284,7.50930928,211.45,211.4,4.731]
[1737085629679,7.50930928,211.45,211.37,7.50930928]
[1737085630782,12.23930928,211.45,211.37,7.50930928]
[1737085632287,12.23930928,211.45,211.4,4.731]
[1737085632686,7.50930928,211.45,211.4,4.731]
[1737085635185,12.23920928,211.45,211.4,4.731]
[1737085635587,4.7304,211.44,211.39,4.7312]
[1737085635888,7.50930928,211.43,211.34,10.55900928]
[1737085636188,7.50930928,211.43,211.36,7.50930928]
[1737085636382,7.50930928,211.45,211.38,7.50930928]
[1737085638089,4.7302,211.44,211.39,4.7313]
[1737085638290,7.50930928,211.45,211.36,7.50930928]
[1737085638793,4.7306,211.42,211.36,7.50930928]
[1737085639888,7.50930928,211.45,211.36,7.50930928]
[1737085640484,7.50930928,211.45,211.34,3.0497]
[1737085640686,7.50930928,211.45,211.37,7.50930928]
[1737085641089,4.7306,211.42,211.37,12.24100928]
[1737085642493,4.7306,211.42,211.37,4.7317]
[1737085642695,4.7308,211.41,211.37,4.7317]
[1737085643087,4.7308,211.41,211.35,7.50930928]
[1737085643088,4.7308,211.41,211.36,4.7319]
[1737085643390,7.50930928,211.41,211.34,3.0497]
[1737085644095,4.7313,211.39,211.34,7.7819]
[1737085644791,4.7313,211.39,211.35,4.7321]
[1737085646089,7.50930928,211.39,211.34,3.0497]
[1737085646296,7.50930928,211.37,211.25,4.84]
[1737085646596,7.50930928,211.37,211.3,7.50930928]
[1737085647896,7.50930928,211.39,211.32,7.50930928]
[1737085649093,4.7317,211.37,211.33,4.7325]
[1737085650101,12.24100928,211.37,211.33,4.7325]
[1737085652397,4.7315,211.38,211.33,4.7325]
[1737085653998,12.24070928,211.39,211.32,7.50930928]
[1737085654706,12.24070928,211.39,211.34,4.7324]
[1737085658713,12.24070928,211.39,211.35,4.7322]
[1737085659107,7.50930928,211.41,211.35,4.7322]
[1737085660213,4.7313,211.39,211.35,4.7322]
[1737085661813,4.7306,211.42,211.38,4.7315]
[1737085662416,7.50930928,211.43,211.36,7.50930928]
[1737085662618,7.50930928,211.43,211.38,4.7315]
[1737085664115,4.7306,211.42,211.38,4.7315]
[1737085674122,7.50930928,211.41,211.34,1.4626]
[1737085675121,4.7314,211.39,211.35,4.7321]
[1737085680028,4.7314,211.39,211.35,12.24140928]
[1737085680530,4.7311,211.4,211.35,12.24140928]
[1737085680727,7.50930928,211.43,211.38,4.7314]
[1737085681123,6.85817701,211.44,211.38,4.7314]
[1737085682133,4.7306,211.43,211.38,4.7314]
[1737085683428,6.85817701,211.44,211.42,7.50930928]
[1737085683625,137.89013161,211.52,211.42,7.50930928]
[1737085683923,4.7293,211.48,211.45,7.50930928]
[1737085684322,7.50930928,211.52,211.45,7.50930928]
[1737085684525,4.7288,211.5,211.45,7.50930928]
[1737085685127,4.7291,211.49,211.45,7.50930928]
[1737085687929,7.50930928,211.52,211.45,7.50930928]
[1737085688129,7.50930928,211.5,211.43,7.50930928]
[1737085688729,4.7295,211.47,211.43,12.23960928]
[1737085689126,7.50930928,211.48,211.41,7.50930928]
[1737085689322,4.73,211.45,211.41,12.23990928]
[1737085693431,4.7302,211.44,211.41,7.50930928]
[1737085697835,4.7299,211.45,211.41,7.50930928]
[1737085701041,4.7302,211.44,211.4,4.731]
[1737085702337,4.7302,211.44,211.39,7.50930928]
[1737085702338,7.50930928,211.48,211.41,7.50930928]
[1737085703838,4.73,211.45,211.41,7.50930928]
[1737085704145,4.73,211.45,211.41,12.24000928]
[1737085706146,4.7294,211.48,211.43,12.23970928]
[1737085706341,7.50930928,211.5,211.43,7.50930928]
[1737085707445,4.7291,211.49,211.45,4.7298]
[1737085707645,7.50930928,211.5,211.43,7.50930928]
[1737085708641,4.729,211.49,211.44,4.7301]
[1737085709139,4.7293,211.48,211.44,4.7301]
[1737085709546,106.00147417,211.51,211.45,12.23900928]
[1737085709745,113.51078345,211.51,211.45,12.23900928]
[1737085710045,4.7291,211.49,211.45,12.23900928]
[1737085715247,4.7293,211.48,211.45,7.50930928]
[1737085715447,4.7293,211.48,211.43,7.50930928]
[1737085716248,4.7291,211.49,211.43,7.50930928]
[1737085716446,106.00147417,211.51,211.45,7.50930928]
[1737085716649,106.00147417,211.51,211.47,7.50930928]
[1737085717348,106.00147417,211.51,211.48,4.7292]
[1737085719552,106.00147417,211.51,211.47,12.23870928]
[1737085720351,4.7284,211.52,211.47,12.23870928]
[1737085722650,190.07653628,211.61,211.46,6.0]
[1737085722848,114.63726402,211.6,211.59,7.50930928]
[1737085723146,9.93401877,211.6,211.59,7.50930928]
[1737085723351,5.14491877,211.6,211.59,7.50930928]
[1737085723552,5.14491877,211.6,211.58,4.7268]
[1737085723747,195.57123349,211.63,211.59,7.50930928]
[1737085723945,7.50930928,211.69,211.62,7.50930928]
[1737085724250,7.50930928,211.67,211.56,4.88]
[1737085724446,7.50930928,211.67,211.59,7.50930928]
[1737085724650,7.50930928,211.65,211.58,7.50930928]
[1737085724850,12.23480928,211.65,211.58,7.50930928]
[1737085725051,7.50930928,211.63,211.56,7.50930928]
[1737085725253,7.50930928,211.63,211.54,12.23700928]
[1737085725455,7.50930928,211.61,211.54,12.23700928]
[1737085726155,12.23570928,211.61,211.54,12.23700928]
[1737085727351,2.8988,211.62,211.54,7.50930928]
[1737085727657,2.8988,211.62,211.58,7.50930928]
[1737085727857,7.50930928,211.68,211.6,7.50930928]
[1737085728055,4.7252,211.67,211.6,12.23580928]
[1737085728256,7.50930928,211.66,211.5,3.910405]
[1737085728455,7.50930928,211.64,211.57,7.50930928]
[1737085729258,4.7261,211.62,211.57,7.50930928]
[1737085729559,7.50930928,211.64,211.57,7.50930928]
[1737085730458,4.726,211.63,211.57,7.50930928]
[1737085731051,4.7262,211.62,211.57,7.50930928]
[1737085732359,7.50930928,211.64,211.57,7.50930928]
[1737085732561,7.50930928,211.66,211.59,7.50930928]
[1737085734158,4.7259,211.63,211.59,7.50930928]
[1737085735262,4.7259,211.63,211.57,7.50930928]
[1737085736564,7.9172,211.69,211.54,7.50930928]
[1737085736565,7.50930928,211.62,211.54,7.50930928]
[1737085736757,3.1628,211.61,211.54,7.50930928]
[1737085738259,4.7269,211.59,211.54,7.50930928]
[1737085739166,7.50930928,211.6,211.54,7.50930928]
[1737085740063,4.7272,211.58,211.54,7.50930928]
[1737085741163,4.7273,211.57,211.54,7.50930928]
[1737085741559,7.50930928,211.6,211.43,26.1318235]
[1737085741862,7.50930928,211.56,211.5,7.50930928]
[1737085742059,7.50930928,211.58,211.5,7.50930928]
[1737085742259,7.50930928,211.58,211.52,7.50930928]
[1737085742463,8.95660928,211.6,211.54,7.50930928]
[1737085742659,8.0628,211.61,211.56,7.50930928]
[1737085742860,3.1628,211.61,211.56,7.50930928]
[1737085744167,4.7267,211.6,211.56,7.50930928]
[1737085744567,3.1628,211.61,211.56,7.50930928]
[1737085744867,7.50930928,211.66,211.58,7.50930928]
[1737085745071,7.50930928,211.66,211.6,7.50930928]
[1737085745267,4.7259,211.63,211.6,7.50930928]
[1737085746268,4.7257,211.64,211.6,7.50930928]
[1737085746467,10.51190928,211.68,211.6,7.50930928]
[1737085746665,4.7254,211.66,211.62,7.50930928]
[1737085747667,3.0026,211.68,211.62,7.50930928]
[1737085748272,4.725,211.67,211.64,7.50930928]
[1737085751076,4.7253,211.66,211.62,7.50930928]
[1737085751580,3.0026,211.68,211.62,7.50930928]
[1737085752682,4.725,211.67,211.62,7.50930928]
[1737085756079,4.725,211.67,211.62,12.23540928]
[1737085756782,4.7255,211.65,211.62,7.50930928]
[1737085757381,4.7255,211.65,211.6,12.23570928]
[1737085758983,4.7257,211.64,211.55,6.58710664]
[1737085759283,4.7257,211.64,211.6,7.50930928]
[1737085761088,4.726,211.63,211.58,7.50930928]
[1737085761982,4.7261,211.62,211.58,7.50930928]
[1737085762187,4.7261,211.62,211.58,12.23620928]
[1737085762583,4.7265,211.61,211.56,4.7273]
[1737085762787,4.7265,211.61,211.56,12.23660928]
[1737085763589,4.7265,211.61,211.56,7.50930928]
[1737085763790,4.7265,211.61,211.57,4.7272]
[1737085764392,7.50930928,211.63,211.58,4.727]
[1737085764593,7.50930928,211.65,211.58,12.23630928]
[1737085765187,7.50930928,211.65,211.58,7.50930928]
[1737085765392,7.50930928,211.65,211.59,4.7266]
[1737085765588,3.0026,211.68,211.62,7.50930928]
[1737085765794,3.0026,211.68,211.64,4.7256]
[1737085765990,3.0026,211.68,211.62,7.50930928]
[1737085766595,3.0026,211.68,211.62,4.7261]
[1737085767395,7.7276,211.68,211.62,4.7261]
[1737085767589,3.0026,211.68,211.62,4.7261]
[1737085769099,3.0026,211.68,211.63,7.50930928]
[1737085769299,4.725,211.67,211.63,12.23520928]
[1737085769800,4.7245,211.7,211.66,4.7252]
[1737085770002,4.7245,211.7,211.65,7.50930928]
[1737085771194,4.7245,211.7,211.65,12.23470928]
[1737085779503,1.4783,211.8,211.65,7.50930928]
[1737085779800,4.7234,211.75,211.71,7.50930928]
[1737085780004,7.50930928,211.79,211.73,7.50930928]
[1737085780301,7.50930928,211.79,211.61,76.91664314]
[1737085780302,7.50930928,211.77,211.71,7.50930928]
[1737085780507,7.50930928,211.75,211.67,7.50930928]
[1737085782007,7.50930928,211.77,211.69,7.50930928]
[1737085782308,7.50930928,211.79,211.71,7.50930928]
[1737085782805,4.723,211.77,211.72,4.7238]
[1737085783207,4.723,211.77,211.73,4.7237]
[1737085783406,4.723,211.77,211.73,12.23300928]
[1737085784205,7.50930928,211.79,211.71,7.50930928]
[1737085784404,7.50930928,211.77,211.71,7.50930928]
[1737085784908,4.7234,211.75,211.71,7.50930928]
[1737085785512,7.50930928,211.75,211.69,7.50930928]
[1737085786000,4.7236,211.74,211.69,7.50930928]
[1737085786204,7.50930928,211.75,211.67,12.23430928]
[1737085787204,4.724,211.72,211.67,12.23430928]
[1737085793204,4.7245,211.7,211.67,7.50930928]
[1737085793406,7.50930928,211.73,211.67,7.50930928]
[1737085794009,4.7245,211.7,211.67,7.50930928]
[1737085798817,7.50930928,211.73,211.61,76.91664314]
[1737085799017,4.7248,211.68,211.61,76.91664314]
[1737085799221,4.7248,211.68,211.63,7.50930928]
[1737085799917,4.7248,211.68,211.64,4.7256]
[1737085800417,4.7246,211.69,211.64,4.7256]
[1737085801218,7.50930928,211.71,211.63,7.50930928]
[1737085801407,4.7252,211.66,211.63,7.50930928]
[1737085801613,4.7252,211.66,211.61,84.42595242]
[1737085802414,4.7252,211.66,211.61,7.50930928]
[1737085803017,4.7252,211.66,211.63,7.50930928]
[1737085806818,4.725,211.67,211.63,7.50930928]
[1737085808220,4.7246,211.69,211.65,7.50930928]
[1737085813024,4.7246,211.69,211.65,12.23470928]
[1737085813925,4.7248,211.68,211.64,4.7257]
[1737085814327,4.7248,211.68,211.65,7.50930928]
[1737085818830,7.6732,211.7,211.66,4.7252]
[1737085819834,4.7246,211.69,211.65,12.23470928]
[1737085820132,2.9488,211.7,211.65,7.50930928]
[1737085820328,4.7247,211.69,211.65,7.50930928]
[1737085820532,2.9488,211.7,211.63,12.23500928]
[1737085821424,4.7247,211.69,211.64,5.37418816]
[1737085821631,2.9488,211.7,211.64,5.37418816]
[1737085822031,2.9488,211.7,211.65,5.37418816]
[1737085822429,2.9488,211.7,211.63,12.23500928]
[1737085822630,4.7248,211.68,211.63,12.23500928]
[1737085822932,2.9488,211.7,211.64,5.37421229]
[1737085823528,2.9488,211.7,211.63,12.23500928]
[1737085824430,4.725,211.68,211.63,12.23500928]
[1737085825233,4.725,211.68,211.65,7.50930928]
[1737085828133,2.9488,211.7,211.65,7.50930928]
[1737085829633,7.50930928,211.67,211.6,26.1318235]
[1737085829829,2.9488,211.7,211.6,26.1318235]
[1737085829830,7.50930928,211.65,211.6,26.1318235]
[1737085830433,7.50930928,211.65,211.61,5.37725458]
[1737085830935,7.50930928,211.65,211.62,5.37725458]
[1737085831235,4.7259,211.64,211.62,5.37725458]
[1737085831430,4.7259,211.64,211.63,5.37725458]
[1737085837735,4.7259,211.64,211.6,12.23580928]
[1737085838343,4.7259,211.64,211.62,7.50930928]
[1737085838545,4.7257,211.64,211.61,5.37894553]
[1737085839046,4.7257,211.64,211.6,7.50930928]
[1737085839235,4.7257,211.64,211.6,12.23590928]
[1737085840243,4.7257,211.64,211.61,5.37943202]
[1737085840643,7.50930928,211.65,211.62,5.37943202]
[1737085841044,7.50930928,211.65,211.58,12.23610928]
[1737085841542,7.50930928,211.65,211.59,5.3807103]
[1737085842344,4.7259,211.63,211.6,5.3807103]
[1737085842844,4.7259,211.63,211.61,5.3807103]
[1737085843441,4.7259,211.63,211.58,12.23610928]
[1737085843845,4.7259,211.63,211.59,5.38194907]
[1737085844945,4.7259,211.63,211.6,5.38194907]
[1737085845348,4.7259,211.63,211.61,5.38194907]
[1737085845846,4.7259,211.63,211.62,5.38194907]
[1737085850851,4.7256,211.65,211.62,5.38194907]
[1737085851042,4.7256,211.65,211.63,5.38194907]
[1737085851247,4.7256,211.65,211.64,5.38194907]
[1737085853046,4.7256,211.65,211.6,12.23590928]
[1737085853650,4.7256,211.65,211.61,5.33557834]
[1737085854451,4.7256,211.65,211.62,5.33557834]
[1737085855051,4.7256,211.65,211.6,12.23590928]
[1737085855348,4.7256,211.65,211.61,5.33540261]
[1737085856049,4.7256,211.65,211.62,5.33540261]
[1737085856552,4.7256,211.65,211.6,12.23590928]
[1737085856947,4.7256,211.65,211.61,5.33508295]
[1737085857548,4.7256,211.65,211.62,5.33508295]
[1737085858054,4.7256,211.65,211.6,12.23590928]
[1737085858651,4.7256,211.65,211.61,5.33535022]
[1737085859145,4.7256,211.65,211.6,12.23590928]
[1737085860151,4.7256,211.65,211.61,5.3352335]
[1737085860553,4.7256,211.65,211.62,5.3352335]
[1737085861354,4.7256,211.65,211.6,12.23590928]
[1737085861954,4.7256,211.65,211.61,5.33546051]
[1737085862554,4.7256,211.65,211.62,5.33546051]
[1737085863350,4.7256,211.65,211.6,12.23590928]
[1737085863847,7.50930928,211.67,211.58,7.50930928]
[1737085864052,7.50930928,211.63,211.57,6.58710664]
[1737085864253,7.50930928,211.61,211.57,6.58710664]
[1737085864454,4.7272,211.57,211.56,6.58710664]
[1737085864955,12.23650928,211.57,211.56,5.33636791]
[1737085865155,4.7275,211.56,211.55,17.15781686]
[1737085865753,4.728,211.54,211.49,4.729]
[1737085867952,4.7289,211.5,211.45,4.7297]
[1737085868258,7.50930928,211.49,211.42,7.50930928]
[1737085868559,4.7293,211.48,211.42,7.50930928]
[1737085868754,7.50930928,211.47,211.41,3.0482]
[1737085869459,7.50930928,211.47,211.4,7.50930928]
[1737085869655,7.50930928,211.45,211.37,1.4946]
[1737085869854,154.48124142,211.53,211.4,7.50930928]
[1737085870056,7.50930928,211.47,211.4,7.50930928]
[1737085870756,4.7297,211.46,211.4,12.24020928]
[1737085873761,4.73,211.45,211.39,7.50930928]
[1737085873959,4.73,211.45,211.37,9.00390928]
[1737085873960,7.50930928,211.45,211.37,9.00390928]
[1737085874164,155.94684142,211.53,211.37,9.00390928]
[1737085874165,7.50930928,211.43,211.37,9.00390928]
[1737085874867,7.50930928,211.43,211.37,1.4946]
[1737085875165,7.50930928,211.39,211.27,138.11772183]
[1737085875370,7.50930928,211.39,211.31,7.50930928]
[1737085876366,12.24080928,211.39,211.32,4.7328]
[1737085876864,12.24080928,211.39,211.32,12.24210928]
[1737085877166,7.50930928,211.39,211.32,12.24210928]
[1737085877462,4.7315,211.38,211.32,12.24210928]
[1737085879866,4.7315,211.38,211.32,4.7328]
[1737085880167,12.24060928,211.39,211.33,4.7326]
[1737085880569,7.50930928,211.37,211.27,121.81518209]
[1737085880768,7.50930928,211.37,211.3,7.50930928]
[1737085882270,12.24110928,211.37,211.31,4.733]
[1737085887475,7.50930928,211.37,211.31,4.733]
[1737085887678,4.732,211.36,211.31,4.733]
[1737085890576,4.7312,211.4,211.34,4.7324]
[1737085890767,7.50930928,211.39,211.34,4.7324]
[1737085891272,1.5221,211.43,211.34,7.50930928]
[1737085891475,1.5221,211.43,211.27,121.81518209]